fUSD/lending_fUSD_20260410
["ID","MTS","AMOUNT","RATE_DAILY","PERIOD"]
[420204769,1775776232860,-518.59345507,0.00013273,2]
[420204770,1775776232877,-500.0,0.00013273,2]
[420204771,1775776232892,-500.0,0.00013273,2]
[420204772,1775776232902,-500.0,0.00013273,2]
[420204773,1775776232921,-113.26847074,0.00013273,2]
[420204774,1775776232938,-386.73152926,0.00013273,2]
[420204775,1775776232952,-46848.40438741,0.00013273,2]
[420204777,1775776237981,-2439.91701948,0.00013173,2]
[420204778,1775776237997,-1234.91038051,0.00013173,2]
[420204779,1775776238010,-5434.26867038,0.00013173,2]
[420204780,1775776238028,-1207.80857219,0.00013173,2]
[420204781,1775776238040,-8794.02795487,0.00013173,2]
[420204782,1775776238077,-670.48004675,0.00013173,2]
[420204783,1775776238095,-1583.41443103,0.00013173,2]
[420204784,1775776238107,-1349.90711029,0.00013173,2]
[420204785,1775776238189,-1260.0,0.00013173,2]
[420204786,1775776238207,-956.485885,0.00013173,2]
[420204787,1775776238238,-1454.24614478,0.00013173,2]
[420204788,1775776238252,-33084.00798472,0.00013173,2]
[420204789,1775776238276,-558.74208197,0.00013273,2]
[420204790,1775776238302,-1885.31298107,0.00013273,2]
[420204791,1775776238314,-321.535,0.00013273,2]
[420204792,1775776238337,-1041.30749209,0.00013273,2]
[420204793,1775776238351,-1355.0511,0.00013273,2]
[420204794,1775776238367,-898.06061579,0.00013273,2]
[420204795,1775776238387,-1188.74622491,0.00013273,2]
[420204796,1775776238398,-944.33,0.00013273,2]
[420204797,1775776238412,-600.0,0.00013273,2]
[420204850,1775776241408,-737.66340702,0.00013273,2]
[420204851,1775776241429,-905.5604761,0.00013273,2]
[420204852,1775776241443,-314.22658142,0.00013273,2]
[420204853,1775776241461,-7797.00312763,0.00013273,2]
[420204854,1775776241474,-5244.44842713,0.00013273,2]
[420204855,1775776241486,-10616.94215849,0.00013273,2]
[420204856,1775776241558,-45001.70035458,0.00013273,2]
[420204857,1775776241591,-34176.59021943,0.00013273,2]
[420204858,1775776241616,-493.65095226,0.00013273,2]
[420204859,1775776241673,-4200.00031248,0.00013273,2]
[420204860,1775776241747,-2216741.00940022,0.00013273,2]
[420204861,1775776241760,-151.0,0.00013369,2]
[420204862,1775776241770,-500.0,0.0001346,2]
[420204863,1775776241783,-1000.0,0.000135,2]
[420204864,1775776241803,-175.3302,0.000135,2]
[420204865,1775776241828,-9892.00914054,0.00013561,2]
[420204866,1775776241838,-10483.59703645,0.00013561,2]
[420204867,1775776241857,-357.40661656,0.00013598,2]
[420204868,1775776241867,-4052.95666018,0.00013645,2]
[420204869,1775776241886,-250.0,0.00013662,2]
[420204870,1775776241896,-1600.0,0.00013687,2]
[420204871,1775776241914,-500.0,0.00013698,2]
[420204872,1775776241924,-500.0,0.00013698,2]
[420204873,1775776241934,-500.0,0.00013698,2]
[420204874,1775776241955,-500.0,0.00013698,2]
[420204875,1775776241973,-500.0,0.00013698,2]
[420204876,1775776241983,-500.0,0.00013698,2]
[420204877,1775776241994,-500.0,0.00013698,2]
[420204878,1775776242014,-500.0,0.00013698,2]
[420204879,1775776242034,-500.0,0.00013698,2]
[420204880,1775776242045,-554.53,0.00013698,2]
[420204881,1775776242056,-500.0,0.00013698,2]
[420204882,1775776242074,-500.0,0.00013698,2]
[420204883,1775776242084,-500.0,0.00013698,2]
[420204884,1775776242094,-500.0,0.00013698,2]
[420204885,1775776242106,-500.0,0.00013698,2]
[420204886,1775776242134,-500.0,0.00013698,2]
[420204887,1775776242144,-500.0,0.00013698,2]
[420204888,1775776242154,-500.0,0.00013698,2]
[420204889,1775776242172,-569.21254605,0.00013698,2]
[420204890,1775776242181,-500.0,0.00013698,2]
[420204891,1775776242194,-500.0,0.00013698,2]
[420204892,1775776242213,-500.0,0.00013698,2]
[420204893,1775776242234,-500.0,0.00013698,2]
[420204894,1775776242244,-500.0,0.00013698,2]
[420204895,1775776242273,-500.0,0.00013698,2]
[420204896,1775776242300,-500.0,0.00013698,2]
[420204897,1775776242310,-500.0,0.00013698,2]
[420204898,1775776242322,-500.0,0.00013698,2]
[420204899,1775776242365,-500.0,0.00013698,2]
[420204900,1775776242375,-500.0,0.00013698,2]
[420204901,1775776242396,-500.0,0.00013698,2]
[420204902,1775776242407,-500.0,0.00013698,2]
[420204903,1775776242426,-229.91,0.00013698,2]
[420204904,1775776242438,-598.29,0.00013698,2]
[420204905,1775776242447,-500.0,0.00013698,2]
[420204906,1775776242461,-500.0,0.00013698,2]
[420204907,1775776242477,-500.0,0.00013698,2]
[420204908,1775776242487,-500.0,0.00013698,2]
[420204909,1775776242497,-500.0,0.00013698,2]
[420204910,1775776242518,-500.0,0.00013698,2]
[420204911,1775776242528,-3155.0,0.00013699,2]
[420204912,1775776242544,-150.0,0.00013699,2]
[420204913,1775776242554,-150.0,0.00013699,2]
[420204914,1775776242572,-150.0,0.00013699,2]
[420204915,1775776242584,-150.0,0.00013699,2]
[420204916,1775776242597,-150.0,0.00013699,2]
[420204917,1775776242615,-150.0,0.00013699,2]
[420204918,1775776242630,-150.0,0.00013699,2]
[420204919,1775776242641,-500.0,0.00013699,2]
[420204920,1775776242678,-500.0,0.00013699,2]
[420204921,1775776242716,-500.0,0.00013699,2]
[420204922,1775776242752,-500.0,0.00013699,2]
[420204924,1775776242775,-500.0,0.00013699,2]
[420204925,1775776242816,-500.0,0.00013699,2]
[420204927,1775776242826,-500.0,0.00013699,2]
[420204931,1775776242846,-529.9867115,0.00013699,2]
[420204934,1775776242867,-500.0,0.00013699,2]
[420204937,1775776242877,-500.0,0.00013699,2]
[420204939,1775776242905,-500.0,0.00013699,2]
[420204941,1775776242940,-500.0,0.00013699,2]
[420204943,1775776242975,-500.0,0.00013699,2]
[420204944,1775776242996,-352.48557695,0.00013699,2]
[420204945,1775776243007,-162.57,0.000137,2]
[420204946,1775776243026,-200.0,0.00013734,2]
[420204947,1775776243040,-487.27836688,0.00013821,2]
[420204948,1775776243050,-9892.00914054,0.00013854,2]
[420204949,1775776243060,-10483.59703645,0.00013854,2]
[420204950,1775776243074,-1962.17532822,0.000139,3]
[420204951,1775776243085,-160.0,0.00013954,2]
[420204952,1775776243095,-150.0,0.00013973,2]
[420204953,1775776243112,-150.0,0.00013973,2]
[420204954,1775776243123,-150.0,0.00013973,2]
[420204955,1775776243134,-150.0,0.00013973,2]
[420204956,1775776243157,-150.0,0.00013973,2]
[420204957,1775776243180,-150.0,0.00013973,2]
[420204958,1775776243195,-150.0,0.00013973,2]
[420204959,1775776243230,-255.0,0.00014104,2]
[420204960,1775776243262,-9892.00914054,0.00014146,2]
[420204961,1775776243276,-10483.59703645,0.00014146,2]
[420204962,1775776243290,-3731.60090145,0.00014147,2]
[420204963,1775776243299,-238.52885412,0.00014147,2]
[420204964,1775776243309,-150.0,0.00014247,2]
[420204965,1775776243319,-150.0,0.00014247,2]
[420204966,1775776243328,-150.0,0.00014247,2]
[420204967,1775776243339,-150.0,0.00014247,2]
[420204968,1775776243348,-150.0,0.00014247,2]
[420204969,1775776243358,-150.0,0.00014247,2]
[420204970,1775776243368,-1000.0,0.00014247,2]
[420204971,1775776243379,-1000.0,0.00014247,2]
[420204972,1775776243389,-500.0,0.00014247,2]
[420204973,1775776243398,-431.97746533,0.00014247,2]
[420204974,1775776243409,-1000.0,0.00014247,2]
[420204975,1775776243420,-503.36350932,0.00014247,2]
[420204976,1775776243431,-1000.0,0.00014247,2]
[420204978,1775776243440,-1000.0,0.00014247,2]
[420204980,1775776243450,-1000.0,0.00014247,2]
[420204982,1775776243464,-505.0,0.00014387,3]
[420204984,1775776243475,-9892.00914054,0.00014438,2]
[420204986,1775776243486,-10483.59703645,0.00014438,2]
[420204988,1775776243496,-204.9378,0.000147,2]
[420204990,1775776243511,-1573.0,0.0001472,2]
[420204991,1775776243527,-9892.00914054,0.00014731,2]
[420204992,1775776243537,-10483.59703645,0.00014731,2]
[420204993,1775776243559,-357.40661656,0.00014749,2]
[420204994,1775776243568,-1025.74415758,0.00014795,2]
[420204995,1775776243583,-1500.0,0.00014795,2]
[420204996,1775776243595,-1500.0,0.00014795,2]
[420204997,1775776243605,-1500.0,0.00014795,2]
[420204998,1775776243618,-500.0,0.00014795,2]
[420204999,1775776243628,-229.4721104,0.000149,2]
[420205000,1775776243638,-198.0,0.00014919,2]
[420205001,1775776243652,-300.0,0.00015,2]
[420205002,1775776243664,-812.74,0.00015,2]
[420205003,1775776243674,-500.0,0.00015,2]
[420205004,1775776243686,-502.05227697,0.00015,2]
[420205005,1775776243696,-160.0,0.00015009,2]
[420205006,1775776243707,-544.993111,0.00015009,2]
[420205007,1775776243726,-929.986223,0.00015009,2]
[420205009,1775776243737,-9892.00914054,0.00015023,2]
[420205010,1775776243748,-10483.59703645,0.00015023,2]
[420205012,1775776243770,-3731.60090145,0.00015024,2]
[420205014,1775776243780,-238.52885411,0.00015024,2]
[420205015,1775776243799,-405.459515,0.00015036,7]
[420205016,1775776243808,-800.96674089,0.00015068,2]
[420205017,1775776243819,-163.29,0.00015176,2]
[420205018,1775776243835,-500.0,0.00015176,2]
[420205019,1775776243844,-500.0,0.00015176,2]
[420205020,1775776243861,-500.0,0.00015176,2]
[420205021,1775776243872,-500.0,0.00015177,2]
[420205022,1775776243882,-500.0,0.00015177,2]
[420205023,1775776243895,-500.0,0.00015177,2]
[420205024,1775776243906,-500.0,0.00015177,2]
[420205025,1775776243917,-500.0,0.00015177,2]
[420205026,1775776243939,-500.0,0.00015177,2]
[420205027,1775776243948,-500.0,0.00015177,2]
[420205028,1775776243958,-500.0,0.00015177,2]
[420205029,1775776243973,-500.0,0.00015177,2]
[420205030,1775776243992,-500.0,0.00015177,2]
[420205031,1775776244005,-330.0,0.00015177,2]
[420205032,1775776244015,-150.0,0.00015177,2]
[420205033,1775776244035,-150.0,0.00015177,2]
[420205034,1775776244070,-214.72513774,0.00015177,2]
[420205035,1775776244096,-295.756856,0.00015177,2]
[420205036,1775776244112,-295.756856,0.00015177,2]
[420205037,1775776244125,-151.0,0.00015177,2]
[420205038,1775776244143,-295.756856,0.00015177,2]
[420205039,1775776244170,-151.0,0.00015177,2]
[420205040,1775776244180,-295.756856,0.00015177,2]
[420205041,1775776244208,-151.0,0.00015177,2]
[420205042,1775776244226,-151.0,0.00015177,2]
[420205043,1775776244235,-248.528905,0.00015177,2]
[420205044,1775776244245,-248.528905,0.00015177,2]
[420205045,1775776244255,-256.055482,0.00015177,2]
[420205046,1775776244269,-248.528905,0.00015177,2]
[420205047,1775776244278,-256.055482,0.00015177,2]
[420205048,1775776244291,-248.528905,0.00015177,2]
[420205049,1775776244305,-256.055482,0.00015177,2]
[420205050,1775776244327,-179.02748,0.00015177,2]
[420205051,1775776244337,-256.055482,0.00015177,2]
[420205052,1775776244346,-179.02748,0.00015177,2]
[420205053,1775776244373,-179.02748,0.00015177,2]
[420205054,1775776244383,-179.02748,0.00015177,2]
[420205055,1775776244396,-214.869309,0.00015177,2]
[420205056,1775776244416,-214.869309,0.00015177,2]
[420205057,1775776244425,-151.0,0.00015177,2]
[420205058,1775776244440,-214.869309,0.00015177,2]
[420205059,1775776244480,-151.0,0.00015177,2]
[420205060,1775776244493,-400.94519,0.00015177,2]
[420205061,1775776244519,-151.0,0.00015177,2]
[420205062,1775776244538,-214.869309,0.00015177,2]
[420205063,1775776244577,-652.549438,0.00015177,2]
[420205064,1775776244588,-400.94519,0.00015177,2]
[420205065,1775776244607,-188.284526,0.00015177,2]
[420205066,1775776244619,-287.830144,0.00015177,2]
[420205067,1775776244629,-615.081935,0.00015177,2]
[420205068,1775776244652,-652.549438,0.00015177,2]
[420205069,1775776244667,-400.94519,0.00015177,2]
[420205070,1775776244677,-151.0,0.00015177,2]
[420205071,1775776244693,-188.284526,0.00015177,2]
[420205072,1775776244703,-615.081935,0.00015177,2]
[420205073,1775776244715,-652.549438,0.00015177,2]
[420205074,1775776244726,-400.94519,0.00015177,2]
[420205075,1775776244746,-188.284526,0.00015177,2]
[420205076,1775776244761,-615.081935,0.00015177,2]
[420205077,1775776244779,-652.549438,0.00015177,2]
[420205078,1775776244806,-188.284526,0.00015177,2]
[420205079,1775776244815,-615.081935,0.00015177,2]
[420205080,1775776244838,-307.05026,0.00015177,2]
[420205081,1775776244867,-3017.752801,0.00015177,2]
[420205082,1775776244898,-211.75213,0.00015177,2]
[420205083,1775776244920,-3017.752801,0.00015177,2]
[420205084,1775776245159,-307.05026,0.00015177,2]
[420205085,1775776245169,-151.0,0.00015177,2]
[420205086,1775776245178,-151.0,0.00015177,2]
[420205087,1775776245194,-211.75213,0.00015177,2]
[420205088,1775776245204,-3017.752801,0.00015177,2]
[420205089,1775776245221,-307.05026,0.00015177,2]
[420205090,1775776245231,-151.0,0.00015177,2]
[420205091,1775776245249,-211.75213,0.00015177,2]
[420205092,1775776245259,-307.05026,0.00015177,2]
[420205093,1775776245273,-3017.752801,0.00015177,2]
[420205094,1775776245283,-789.053535,0.00015177,2]
[420205095,1775776245294,-151.0,0.00015177,2]
[420205096,1775776245304,-211.75213,0.00015177,2]
[420205097,1775776245314,-151.0,0.00015177,2]
[420205098,1775776245324,-789.053535,0.00015177,2]
[420205099,1775776245334,-151.0,0.00015177,2]
[420205100,1775776245345,-789.053535,0.00015177,2]
[420205101,1775776245354,-674.208349,0.00015177,2]
[420205102,1775776245370,-151.0,0.00015177,2]
[420205103,1775776245379,-674.208349,0.00015177,2]
[420205104,1775776245389,-789.053535,0.00015177,2]
[420205105,1775776245406,-674.208349,0.00015177,2]
[420205106,1775776245419,-674.208349,0.00015177,2]
[420205107,1775776245446,-310.659574,0.00015177,2]
[420205108,1775776245456,-310.659574,0.00015177,2]
[420205109,1775776245475,-151.0,0.00015177,2]
[420205110,1775776245484,-310.659574,0.00015177,2]
[420205111,1775776245495,-310.659574,0.00015177,2]
[420205112,1775776245504,-151.0,0.00015177,2]
[420205113,1775776245514,-737.0,0.00015177,2]
[420205114,1775776245523,-737.0,0.00015177,2]
[420205115,1775776245534,-737.0,0.00015177,2]
[420205116,1775776245546,-737.0,0.00015177,2]
[420205117,1775776245555,-737.0,0.00015177,2]
[420205118,1775776245565,-737.0,0.00015177,2]
[420205119,1775776245575,-737.0,0.00015177,2]
[420205120,1775776245586,-737.0,0.00015177,2]
[420205121,1775776245595,-737.0,0.00015177,2]
[420205122,1775776245605,-500.0,0.00015177,2]
[420205123,1775776245618,-500.0,0.00015177,2]
[420205124,1775776245628,-500.0,0.00015177,2]
[420205125,1775776245638,-500.0,0.00015177,2]
[420205126,1775776245647,-500.0,0.00015177,2]
[420205127,1775776245664,-500.0,0.00015177,2]
[420205128,1775776245674,-500.0,0.00015177,2]
[420205129,1775776245684,-500.0,0.00015177,2]
[420205130,1775776245695,-500.0,0.00015177,2]
[420205131,1775776245711,-500.0,0.00015177,2]
[420205132,1775776245720,-500.0,0.00015177,2]
[420205133,1775776245730,-189.048827,0.00015177,2]
[420205134,1775776245746,-338.15756367,0.00015177,2]
[420205135,1775776245762,-151.0,0.00015177,2]
[420205136,1775776245772,-763.034407,0.00015177,2]
[420205137,1775776245800,-151.0,0.00015177,2]
[420205138,1775776245859,-268.950056,0.00015177,2]
[420205139,1775776245890,-763.034407,0.00015177,2]
[420205140,1775776245942,-189.048827,0.00015177,2]
[420205141,1775776246001,-151.0,0.00015177,2]
[420205142,1775776246019,-763.034407,0.00015177,2]
[420205143,1775776246028,-189.048827,0.00015177,2]
[420205144,1775776246042,-268.950056,0.00015177,2]
[420205145,1775776246051,-172.552294,0.00015177,2]
[420205146,1775776246061,-763.034407,0.00015177,2]
[420205147,1775776246075,-158.160552,0.00015177,2]
[420205148,1775776246087,-189.048827,0.00015177,2]
[420205149,1775776246097,-268.950056,0.00015177,2]
[420205150,1775776246106,-737.0,0.00015177,2]
[420205151,1775776246135,-737.0,0.00015177,2]
[420205152,1775776246146,-737.0,0.00015177,2]
[420205153,1775776246168,-737.0,0.00015177,2]
[420205154,1775776246183,-571.558803,0.00015177,2]
[420205155,1775776246201,-737.0,0.00015177,2]
[420205156,1775776246228,-983.750695,0.00015177,2]
[420205157,1775776246241,-737.0,0.00015177,2]
[420205158,1775776246251,-158.160552,0.00015177,2]
[420205159,1775776246263,-737.0,0.00015177,2]
[420205160,1775776246276,-268.950056,0.00015177,2]
[420205161,1775776246287,-324.359325,0.00015177,2]
[420205162,1775776246296,-737.0,0.00015177,2]
[420205163,1775776246306,-737.0,0.00015177,2]
[420205164,1775776246325,-571.558803,0.00015177,2]
[420205165,1775776246335,-983.750695,0.00015177,2]
[420205166,1775776246344,-158.160552,0.00015177,2]
[420205167,1775776246364,-737.0,0.00015177,2]
[420205168,1775776246376,-324.359325,0.00015177,2]
[420205169,1775776246400,-737.0,0.00015177,2]
[420205170,1775776246410,-151.0,0.00015177,2]
[420205171,1775776246433,-571.558803,0.00015177,2]
[420205172,1775776246458,-983.750695,0.00015177,2]
[420205173,1775776246467,-151.0,0.00015177,2]
[420205174,1775776246492,-158.160552,0.00015177,2]
[420205175,1775776246502,-324.359325,0.00015177,2]
[420205176,1775776246524,-737.0,0.00015177,2]
[420205177,1775776246533,-1563.494859,0.00015177,2]
[420205178,1775776246542,-571.558803,0.00015177,2]
[420205179,1775776246552,-151.0,0.00015177,2]
[420205180,1775776246564,-983.750695,0.00015177,2]
[420205181,1775776246579,-151.0,0.00015177,2]
[420205182,1775776246588,-324.359325,0.00015177,2]
[420205183,1775776246598,-737.0,0.00015177,2]
[420205184,1775776246608,-1563.494859,0.00015177,2]
[420205185,1775776246624,-151.0,0.00015177,2]
[420205186,1775776246633,-1563.494859,0.00015177,2]
[420205187,1775776246644,-151.0,0.00015177,2]
[420205188,1775776246654,-1563.494859,0.00015177,2]
[420205189,1775776246675,-737.0,0.00015177,2]
[420205190,1775776246684,-758.91631869,0.00015177,2]
[420205191,1775776246694,-151.0,0.00015177,2]
[420205192,1775776246712,-295.041581,0.00015177,2]
[420205193,1775776246722,-547.679731,0.00015177,2]
[420205194,1775776246742,-300.141804,0.00015177,2]
[420205195,1775776246752,-295.041581,0.00015177,2]
[420205196,1775776246762,-547.679731,0.00015177,2]
[420205197,1775776246783,-151.0,0.00015177,2]
[420205198,1775776246800,-300.141804,0.00015177,2]
[420205199,1775776246810,-295.041581,0.00015177,2]
[420205200,1775776246833,-547.679731,0.00015177,2]
[420205201,1775776246843,-812.070344,0.00015177,2]
[420205202,1775776246852,-213.981538,0.00015177,2]
[420205203,1775776246871,-151.0,0.00015177,2]
[420205204,1775776246881,-300.141804,0.00015177,2]
[420205205,1775776246902,-812.070344,0.00015177,2]
[420205206,1775776246912,-295.041581,0.00015177,2]
[420205207,1775776246925,-547.679731,0.00015177,2]
[420205208,1775776246935,-213.981538,0.00015177,2]
[420205209,1775776246945,-151.0,0.00015177,2]
[420205210,1775776246963,-300.141804,0.00015177,2]
[420205211,1775776246973,-812.070344,0.00015177,2]
[420205212,1775776246982,-213.981538,0.00015177,2]
[420205213,1775776247001,-812.070344,0.00015177,2]
[420205214,1775776247010,-651.716572,0.00015177,2]
[420205215,1775776247032,-213.981538,0.00015177,2]
[420205216,1775776247042,-227.829619,0.00015177,2]
[420205217,1775776247052,-2068.862999,0.00015177,2]
[420205218,1775776247472,-651.716572,0.00015177,2]
[420205219,1775776247501,-227.829619,0.00015177,2]
[420205220,1775776247511,-651.716572,0.00015177,2]
[420205221,1775776247521,-2068.862999,0.00015177,2]
[420205222,1775776247530,-227.829619,0.00015177,2]
[420205223,1775776247549,-2068.862999,0.00015177,2]
[420205224,1775776247566,-651.716572,0.00015177,2]
[420205225,1775776247576,-151.0,0.00015177,2]
[420205226,1775776247586,-227.829619,0.00015177,2]
[420205227,1775776247601,-151.0,0.00015177,2]
[420205228,1775776247612,-151.0,0.00015177,2]
[420205229,1775776247635,-151.0,0.00015177,2]
[420205230,1775776247649,-151.0,0.00015177,2]
[420205231,1775776247681,-543.66552,0.00015177,2]
[420205232,1775776247697,-647.556024,0.00015177,2]
[420205233,1775776247728,-151.0,0.00015177,2]
[420205234,1775776247742,-519.317961,0.00015177,2]
[420205235,1775776247759,-543.66552,0.00015177,2]
[420205236,1775776247774,-647.556024,0.00015177,2]
[420205237,1775776247796,-151.0,0.00015177,2]
[420205238,1775776247821,-151.0,0.00015177,2]
[420205239,1775776247832,-2068.862999,0.00015177,2]
[420205240,1775776247842,-543.66552,0.00015177,2]
[420205241,1775776247851,-647.556024,0.00015177,2]
[420205242,1775776247869,-519.317961,0.00015177,2]
[420205243,1775776247887,-151.0,0.00015177,2]
[420205244,1775776247896,-647.556024,0.00015177,2]
[420205245,1775776247906,-543.66552,0.00015177,2]
[420205246,1775776247924,-519.317961,0.00015177,2]
[420205247,1775776247934,-151.0,0.00015177,2]
[420205248,1775776247948,-519.317961,0.00015177,2]
[420205249,1775776247964,-151.0,0.00015177,2]
[420205250,1775776247992,-919.109647,0.00015177,2]
[420205251,1775776248013,-151.0,0.00015177,2]
[420205252,1775776248026,-151.0,0.00015177,2]
[420205253,1775776248045,-725.348432,0.00015177,2]
[420205254,1775776248055,-919.109647,0.00015177,2]
[420205255,1775776248066,-311.689616,0.00015177,2]
[420205256,1775776248075,-151.0,0.00015177,2]
[420205257,1775776248093,-151.0,0.00015177,2]
[420205258,1775776248104,-725.348432,0.00015177,2]
[420205259,1775776248114,-919.109647,0.00015177,2]
[420205260,1775776248123,-311.689616,0.00015177,2]
[420205261,1775776248133,-260.316497,0.00015177,2]
[420205262,1775776248147,-725.348432,0.00015177,2]
[420205263,1775776248157,-919.109647,0.00015177,2]
[420205264,1775776248183,-204.155089,0.00015177,2]
[420205265,1775776248194,-311.689616,0.00015177,2]
[420205266,1775776248214,-725.348432,0.00015177,2]
[420205267,1775776248241,-311.689616,0.00015177,2]
[420205268,1775776248251,-500.0,0.00015177,2]
[420205269,1775776248274,-500.0,0.00015177,2]
[420205270,1775776248284,-500.0,0.00015177,2]
[420205271,1775776248310,-500.0,0.00015177,2]
[420205272,1775776248320,-500.0,0.00015177,2]
[420205273,1775776248332,-500.0,0.00015177,2]
[420205274,1775776248344,-294.91635494,0.00015177,2]
[420205275,1775776248358,-151.0,0.00015177,2]
[420205276,1775776248367,-1164.823807,0.00015177,2]
[420205277,1775776248377,-1164.823807,0.00015177,2]
[420205278,1775776248386,-151.0,0.00015177,2]
[420205279,1775776248397,-190.125698,0.00015177,2]
[420205280,1775776248406,-1164.823807,0.00015177,2]
[420205281,1775776248420,-151.0,0.00015177,2]
[420205282,1775776248430,-190.125698,0.00015177,2]
[420205283,1775776248440,-1164.823807,0.00015177,2]
[420205284,1775776248456,-190.125698,0.00015177,2]
[420205285,1775776248465,-213.95582,0.00015177,2]
[420205286,1775776248475,-830.923491,0.00015177,2]
[420205287,1775776248491,-213.95582,0.00015177,2]
[420205288,1775776248501,-830.923491,0.00015177,2]
[420205289,1775776248516,-1719.812644,0.00015177,2]
[420205290,1775776248527,-213.95582,0.00015177,2]
[420205291,1775776248536,-163.26659,0.00015177,2]
[420205292,1775776248556,-430.346022,0.00015177,2]
[420205293,1775776248565,-830.923491,0.00015177,2]
[420205294,1775776248575,-213.95582,0.00015177,2]
[420205295,1775776248585,-1719.812644,0.00015177,2]
[420205296,1775776248609,-430.346022,0.00015177,2]
[420205297,1775776248620,-830.923491,0.00015177,2]
[420205298,1775776248640,-151.0,0.00015177,2]
[420205299,1775776248651,-1719.812644,0.00015177,2]
[420205300,1775776248660,-175.794679,0.00015177,2]
[420205301,1775776248680,-430.346022,0.00015177,2]
[420205302,1775776248696,-151.0,0.00015177,2]
[420205303,1775776248706,-1719.812644,0.00015177,2]
[420205304,1775776248715,-175.794679,0.00015177,2]
[420205305,1775776248745,-190.125698,0.00015177,2]
[420205306,1775776248754,-430.346022,0.00015177,2]
[420205307,1775776248765,-175.794679,0.00015177,2]
[420205308,1775776248786,-1449.704228,0.00015177,2]
[420205309,1775776248796,-175.794679,0.00015177,2]
[420205310,1775776248805,-1433.227279,0.00015177,2]
[420205311,1775776248819,-532.648018,0.00015177,2]
[420205312,1775776248832,-1449.704228,0.00015177,2]
[420205314,1775776248842,-151.0,0.00015177,2]
[420205317,1775776248852,-1433.227279,0.00015177,2]
[420205319,1775776248861,-532.648018,0.00015177,2]
[420205321,1775776248871,-1449.704228,0.00015177,2]
[420205322,1775776248880,-408.067147,0.00015177,2]
[420205323,1775776248895,-1433.227279,0.00015177,2]
[420205324,1775776248904,-532.648018,0.00015177,2]
[420205325,1775776248914,-1449.704228,0.00015177,2]
[420205326,1775776248925,-408.067147,0.00015177,2]
[420205327,1775776248940,-1433.227279,0.00015177,2]
[420205328,1775776248950,-532.648018,0.00015177,2]
[420205330,1775776248976,-1191.11104075,0.00015199,2]
[420205332,1775776248986,-201.932861,0.00015199,2]
[420205334,1775776249013,-601.3376128,0.00015199,2]
[420205336,1775776249034,-1500.0,0.00015199,2]
[420205338,1775776249044,-1500.0,0.00015199,2]
[420205340,1775776249053,-1500.0,0.00015199,2]
[420205343,1775776249069,-1500.0,0.00015199,2]
[420205344,1775776249083,-1500.0,0.00015199,2]
[420205345,1775776249092,-1500.0,0.00015199,2]
[420205346,1775776249102,-1500.0,0.00015199,2]
[420205347,1775776249121,-174.61919141,0.00015199,2]
[420205348,1775776249130,-1500.0,0.00015199,2]
[420205350,1775776249141,-1240.61840911,0.00015199,2]
[420205352,1775776249169,-151.0,0.00015199,2]
[420205355,1775776249186,-743.50770149,0.00015199,2]
[420205356,1775776249198,-174.61919141,0.00015199,2]
[420205359,1775776249216,-668.65185757,0.00015199,2]
[420205361,1775776249229,-279.9045709,0.00015199,2]
[420205363,1775776249247,-1166.05065886,0.00015199,2]
[420205364,1775776249264,-170.0,0.00015199,2]